[Event "January 2 Late 2024"]
[Site "https://www.chess.com"]
[Date "2024.01.02"]
[Round "3"]
[White "Petersson, Kjell"]
[Black "Akhayan"]
[Result "0-1"]
[Board "218"]
[TimeControl "180+1"]
[WhiteFideId "1705148"]
[WhiteElo "2118"]
[BlackElo "2381"]
[WhiteTeam "SWE"]
[WhiteClock "0:00:00"]
[BlackClock "0:00:20"]

1. d4 {[%clk 0:03:00]}  a6 {[%clk 0:02:55]} 2. Bf4 {[%clk 0:03:00]}  e6 {[%clk 0:02:55]} 3. Nf3 {[%clk 0:02:56]}  Nf6 {[%clk 0:02:52]} 4. e3 {[%clk 0:02:48]}  b5 {[%clk 0:02:51]} 5. c4 {[%clk 0:02:42]}  bxc4 {[%clk 0:02:50]} 6. Bxc4 {[%clk 0:02:41]}  Bb7 {[%clk 0:02:49]} 7. O-O {[%clk 0:02:35]}  Be7 {[%clk 0:02:49]} 8. Nc3 {[%clk 0:02:34]}  O-O {[%clk 0:02:50]} 9. h3 {[%clk 0:02:26]}  d6 {[%clk 0:02:50]} 10. Rc1 {[%clk 0:02:05]}  Nbd7 {[%clk 0:02:50]} 11. Re1 {[%clk 0:01:54]}  Rb8 {[%clk 0:02:50]} 12. Bb3 {[%clk 0:01:51]}  h6 {[%clk 0:02:47]} 13. Rc2 {[%clk 0:01:39]}  Nb6 {[%clk 0:02:46]} 14. Qe2 {[%clk 0:01:37]}  Nbd5 {[%clk 0:02:46]} 15. Bg3 {[%clk 0:01:34]}  Nb4 {[%clk 0:02:46]} 16. Rcc1 {[%clk 0:01:31]}  Ne4 {[%clk 0:02:45]} 17. a3 {[%clk 0:01:29]}  Nxg3 {[%clk 0:02:42]} 18. fxg3 {[%clk 0:01:27]}  Nd5 {[%clk 0:02:38]} 19. Rc2 {[%clk 0:01:19]}  Nf6 {[%clk 0:02:38]} 20. Rec1 {[%clk 0:01:18]}  Ne4 {[%clk 0:02:37]} 21. Nxe4 {[%clk 0:01:17]}  Bxe4 {[%clk 0:02:38]} 22. Rc3 {[%clk 0:01:16]}  Bf6 {[%clk 0:02:19]} 23. Ba2 {[%clk 0:01:13]}  c6 {[%clk 0:02:15]} 24. Nd2 {[%clk 0:01:10]}  Bd5 {[%clk 0:02:08]} 25. Nc4 {[%clk 0:01:02]}  Bg5 {[%clk 0:02:01]} 26. h4 {[%clk 0:01:00]}  Bf6 {[%clk 0:01:58]} 27. Qf2 {[%clk 0:00:56]}  Qe7 {[%clk 0:01:47]} 28. b4 {[%clk 0:00:55]}  c5 {[%clk 0:01:42]} 29. bxc5 {[%clk 0:00:51]}  dxc5 {[%clk 0:01:43]} 30. Ne5 {[%clk 0:00:48]}  Bxe5 {[%clk 0:01:36]} 31. dxe5 {[%clk 0:00:46]}  Bxa2 {[%clk 0:01:35]} 32. Qxa2 {[%clk 0:00:46]}  Rfc8 {[%clk 0:01:30]} 33. Qd2 {[%clk 0:00:42]}  Qa7 {[%clk 0:01:20]} 34. Qd6 {[%clk 0:00:39]}  c4 {[%clk 0:01:20]} 35. Qd4 {[%clk 0:00:37]}  Qe7 {[%clk 0:01:15]} 36. Rxc4 {[%clk 0:00:37]}  Rxc4 {[%clk 0:01:12]} 37. Rxc4 {[%clk 0:00:32]}  Qxa3 {[%clk 0:01:11]} 38. Ra4 {[%clk 0:00:32]}  Qc1+ {[%clk 0:01:09]} 39. Kh2 {[%clk 0:00:33]}  Qc6 {[%clk 0:01:09]} 40. Qd6 {[%clk 0:00:30]}  Qb5 {[%clk 0:01:01]} 41. Rxa6 {[%clk 0:00:28]}  Rf8 {[%clk 0:00:58]} 42. Rb6 {[%clk 0:00:27]}  Qe2 {[%clk 0:00:56]} 43. Rb8 {[%clk 0:00:27]}  Rxb8 {[%clk 0:00:56]} 44. Qxb8+ {[%clk 0:00:28]}  Kh7 {[%clk 0:00:57]} 45. Qb6 {[%clk 0:00:26]}  Qf1 {[%clk 0:00:54]} 46. Qb7 {[%clk 0:00:24]}  Qf5 {[%clk 0:00:52]} 47. Qb5 {[%clk 0:00:22]}  Qf2 {[%clk 0:00:50]} 48. Qb3 {[%clk 0:00:21]}  Qf5 {[%clk 0:00:48]} 49. Qc3 {[%clk 0:00:20]}  Qe4 {[%clk 0:00:47]} 50. Qd4 {[%clk 0:00:19]}  Qf5 {[%clk 0:00:46]} 51. Qf4 {[%clk 0:00:19]}  Qg6 {[%clk 0:00:44]} 52. g4 {[%clk 0:00:19]}  f6 {[%clk 0:00:37]} 53. exf6 {[%clk 0:00:18]}  gxf6 {[%clk 0:00:37]} 54. h5 {[%clk 0:00:18]}  Qf7 {[%clk 0:00:38]} 55. Qe4+ {[%clk 0:00:18]}  Kg7 {[%clk 0:00:38]} 56. Kh3 {[%clk 0:00:17]}  Qc7 {[%clk 0:00:37]} 57. Qg6+ {[%clk 0:00:17]}  Kf8 {[%clk 0:00:37]} 58. Qxf6+ {[%clk 0:00:17]}  Kg8 {[%clk 0:00:38]} 59. Qxe6+ {[%clk 0:00:17]}  Kh8 {[%clk 0:00:38]} 60. Qxh6+ {[%clk 0:00:16]}  Kg8 {[%clk 0:00:39]} 61. Qg6+ {[%clk 0:00:16]}  Kf8 {[%clk 0:00:39]} 62. h6 {[%clk 0:00:17]}  Qc1 {[%clk 0:00:37]} 63. Qg7+ {[%clk 0:00:16]}  Ke8 {[%clk 0:00:37]} 64. Qe5+ {[%clk 0:00:15]}  Kf7 {[%clk 0:00:37]} 65. h7 {[%clk 0:00:15]}  Qh1+ {[%clk 0:00:34]} 66. Qh2 {[%clk 0:00:15]}  Qa1 {[%clk 0:00:34]} 67. Qf4+ {[%clk 0:00:13]}  Ke6 {[%clk 0:00:30]} 68. Qf5+ {[%clk 0:00:12]}  Kd6 {[%clk 0:00:30]} 69. Qd3+ {[%clk 0:00:11]}  Ke6 {[%clk 0:00:30]} 70. Qd4 {[%clk 0:00:10]}  Qh1+ {[%clk 0:00:29]} 71. Kg3 {[%clk 0:00:11]}  Qxh7 {[%clk 0:00:30]} 72. Qc4+ {[%clk 0:00:10]}  Kd6 {[%clk 0:00:29]} 73. Qf4+ {[%clk 0:00:09]}  Kc6 {[%clk 0:00:29]} 74. Qf5 {[%clk 0:00:09]}  Qh1 {[%clk 0:00:26]} 75. g5 {[%clk 0:00:08]}  Qe1+ {[%clk 0:00:26]} 76. Qf2 {[%clk 0:00:08]}  Qc3 {[%clk 0:00:23]} 77. g6 {[%clk 0:00:07]}  Qg7 {[%clk 0:00:21]} 78. Qf5 {[%clk 0:00:06]}  Qh6 {[%clk 0:00:21]} 79. Qe4+ {[%clk 0:00:05]}  Kb6 {[%clk 0:00:21]} 80. Qe6+ {[%clk 0:00:02]}  Kb5 {[%clk 0:00:20]} 81. Kf3 {[%clk 0:00:00]}  Qh5+ {[%clk 0:00:20]} 0-1

[Event "January 2 Late 2024"]
[Site "https://www.chess.com"]
[Date "2024.01.02"]
[Round "3"]
[White "Gardezi, Arsal"]
[Black "Kanter, Eduard"]
[Result "0-1"]
[Board "219"]
[TimeControl "180+1"]
[WhiteFideId "30949521"]
[BlackFideId "4103963"]
[WhiteElo "2115"]
[BlackElo "2380"]
[WhiteTeam "USA"]
[BlackTeam "RUS"]
[WhiteClock "0:01:10"]
[BlackClock "0:01:19"]

1. Nf3 {[%clk 0:03:00]}  Nf6 {[%clk 0:02:59]} 2. g3 {[%clk 0:02:54]}  g6 {[%clk 0:02:58]} 3. Bg2 {[%clk 0:02:54]}  Bg7 {[%clk 0:02:59]} 4. O-O {[%clk 0:02:55]}  O-O {[%clk 0:02:59]} 5. c4 {[%clk 0:02:55]}  d6 {[%clk 0:02:58]} 6. Nc3 {[%clk 0:02:55]}  e5 {[%clk 0:02:57]} 7. d4 {[%clk 0:02:53]}  Nbd7 {[%clk 0:02:57]} 8. Bg5 {[%clk 0:02:52]}  h6 {[%clk 0:02:52]} 9. Bd2 {[%clk 0:02:51]}  e4 {[%clk 0:02:51]} 10. Ne1 {[%clk 0:02:51]}  Re8 {[%clk 0:02:50]} 11. Nc2 {[%clk 0:02:48]}  c6 {[%clk 0:02:49]} 12. h3 {[%clk 0:02:47]}  d5 {[%clk 0:02:49]} 13. cxd5 {[%clk 0:02:44]}  cxd5 {[%clk 0:02:50]} 14. Qc1 {[%clk 0:02:43]}  Kh7 {[%clk 0:02:48]} 15. Ne3 {[%clk 0:02:43]}  Nf8 {[%clk 0:02:48]} 16. Nb5 {[%clk 0:02:41]}  Ne6 {[%clk 0:02:45]} 17. Bc3 {[%clk 0:02:20]}  a6 {[%clk 0:02:39]} 18. Na3 {[%clk 0:02:20]}  Bd7 {[%clk 0:02:36]} 19. Qd2 {[%clk 0:02:19]}  h5 {[%clk 0:02:03]} 20. Nac2 {[%clk 0:02:09]}  Bh6 {[%clk 0:02:03]} 21. Qd1 {[%clk 0:02:04]}  h4 {[%clk 0:02:01]} 22. Nb4 {[%clk 0:01:47]}  hxg3 {[%clk 0:01:52]} 23. Nbxd5 {[%clk 0:01:36]}  Nxd5 {[%clk 0:01:49]} 24. Nxd5 {[%clk 0:01:36]}  Bc6 {[%clk 0:01:49]} 25. Nb4 {[%clk 0:01:31]}  gxf2+ {[%clk 0:01:48]} 26. Kxf2 {[%clk 0:01:24]}  Be3+ {[%clk 0:01:19]} 27. Kxe3 {[%clk 0:01:14]}  Qg5+ {[%clk 0:01:19]} 28. Kf2 {[%clk 0:01:14]}  e3+ {[%clk 0:01:19]} 29. Ke1 {[%clk 0:01:10]}  Qg3+ {[%clk 0:01:19]} 0-1

[Event "January 2 Late 2024"]
[Site "https://www.chess.com"]
[Date "2024.01.02"]
[Round "3"]
[White "Torres Hernandez, Leslie Carolin"]
[Black "Kubatko, Ivan"]
[Result "1-0"]
[Board "220"]
[TimeControl "180+1"]
[WhiteFideId "8400504"]
[BlackFideId "24111473"]
[WhiteElo "2083"]
[BlackElo "2378"]
[WhiteTeam "HON"]
[BlackTeam "RUS"]
[WhiteClock "0:00:09"]
[BlackClock "0:00:06"]

1. e4 {[%clk 0:02:54]}  d5 {[%clk 0:02:59]} 2. exd5 {[%clk 0:02:53]}  Qxd5 {[%clk 0:03:00]} 3. Nc3 {[%clk 0:02:52]}  Qa5 {[%clk 0:03:00]} 4. d4 {[%clk 0:02:52]}  Nf6 {[%clk 0:03:00]} 5. Bd2 {[%clk 0:02:50]}  Bf5 {[%clk 0:02:56]} 6. Nf3 {[%clk 0:02:47]}  c6 {[%clk 0:02:56]} 7. Bc4 {[%clk 0:02:45]}  e6 {[%clk 0:02:55]} 8. O-O {[%clk 0:02:43]}  Qc7 {[%clk 0:02:53]} 9. Re1 {[%clk 0:02:42]}  Nbd7 {[%clk 0:02:52]} 10. h3 {[%clk 0:02:38]}  O-O-O {[%clk 0:02:51]} 11. Bb3 {[%clk 0:02:33]}  Bd6 {[%clk 0:02:46]} 12. Qe2 {[%clk 0:02:30]}  h6 {[%clk 0:02:28]} 13. Rad1 {[%clk 0:02:27]}  g5 {[%clk 0:02:26]} 14. Ne5 {[%clk 0:02:26]}  Nb6 {[%clk 0:02:09]} 15. Qf3 {[%clk 0:02:19]}  Bxe5 {[%clk 0:01:16]} 16. dxe5 {[%clk 0:02:16]}  g4 {[%clk 0:01:16]} 17. Qe2 {[%clk 0:01:56]}  Nfd5 {[%clk 0:00:42]} 18. hxg4 {[%clk 0:01:54]}  Bg6 {[%clk 0:00:39]} 19. Nxd5 {[%clk 0:01:35]}  cxd5 {[%clk 0:00:36]} 20. a4 {[%clk 0:01:31]}  Kb8 {[%clk 0:00:35]} 21. Bb4 {[%clk 0:01:25]}  Nc8 {[%clk 0:00:30]} 22. Rc1 {[%clk 0:01:21]}  h5 {[%clk 0:00:28]} 23. g5 {[%clk 0:01:20]}  h4 {[%clk 0:00:29]} 24. c4 {[%clk 0:01:19]}  d4 {[%clk 0:00:29]} 25. c5 {[%clk 0:01:15]}  d3 {[%clk 0:00:29]} 26. Qd2 {[%clk 0:01:15]}  Ne7 {[%clk 0:00:29]} 27. Ba5 {[%clk 0:01:10]}  Qc6 {[%clk 0:00:19]} 28. Bxd8 {[%clk 0:01:09]}  Rxd8 {[%clk 0:00:20]} 29. Bc4 {[%clk 0:01:01]}  h3 {[%clk 0:00:20]} 30. gxh3 {[%clk 0:00:58]}  Rh8 {[%clk 0:00:20]} 31. Kh2 {[%clk 0:00:57]}  Bf5 {[%clk 0:00:20]} 32. Re3 {[%clk 0:00:57]}  Ng6 {[%clk 0:00:16]} 33. Bxd3 {[%clk 0:00:50]}  Rd8 {[%clk 0:00:15]} 34. Rc3 {[%clk 0:00:43]}  Qc7 {[%clk 0:00:14]} 35. Qe2 {[%clk 0:00:35]}  Nf4 {[%clk 0:00:13]} 36. Qf3 {[%clk 0:00:32]}  Nxd3 {[%clk 0:00:11]} 37. Rexd3 {[%clk 0:00:33]}  Qxe5+ {[%clk 0:00:10]} 38. Qg3 {[%clk 0:00:32]}  Qxg3+ {[%clk 0:00:09]} 39. Rxg3 {[%clk 0:00:32]}  Rd2 {[%clk 0:00:09]} 40. Rb3 {[%clk 0:00:31]}  Rxf2+ {[%clk 0:00:09]} 41. Kg1 {[%clk 0:00:29]}  Rc2 {[%clk 0:00:08]} 42. Rgc3 {[%clk 0:00:28]}  Rd2 {[%clk 0:00:08]} 43. c6 {[%clk 0:00:27]}  b6 {[%clk 0:00:08]} 44. c7+ {[%clk 0:00:27]}  Kc8 {[%clk 0:00:09]} 45. a5 {[%clk 0:00:26]}  Rd6 {[%clk 0:00:08]} 46. axb6 {[%clk 0:00:25]}  axb6 {[%clk 0:00:09]} 47. h4 {[%clk 0:00:22]}  e5 {[%clk 0:00:04]} 48. Re3 {[%clk 0:00:19]}  Rd5 {[%clk 0:00:03]} 49. Rxb6 {[%clk 0:00:18]}  Kxc7 {[%clk 0:00:04]} 50. Rf6 {[%clk 0:00:17]}  Bg6 {[%clk 0:00:04]} 51. Rc3+ {[%clk 0:00:14]}  Kd7 {[%clk 0:00:04]} 52. b4 {[%clk 0:00:10]}  Rd4 {[%clk 0:00:04]} 53. b5 {[%clk 0:00:10]}  Rb4 {[%clk 0:00:04]} 54. b6 {[%clk 0:00:10]}  e4 {[%clk 0:00:04]} 55. Rc7+ {[%clk 0:00:10]}  Ke8 {[%clk 0:00:04]} 56. b7 {[%clk 0:00:07]}  e3 {[%clk 0:00:03]} 57. Rc8+ {[%clk 0:00:07]}  Ke7 {[%clk 0:00:04]} 58. b8=Q {[%clk 0:00:07]}  Rxb8 {[%clk 0:00:04]} 59. Rxb8 {[%clk 0:00:08]}  Kd7 {[%clk 0:00:05]} 60. Rb2 {[%clk 0:00:08]}  Ke7 {[%clk 0:00:05]} 61. Re2 {[%clk 0:00:08]}  Kf8 {[%clk 0:00:06]} 62. Rxe3 {[%clk 0:00:09]}  Kg7 {[%clk 0:00:06]} 63. Re7 {[%clk 0:00:09]} 1-0

[Event "January 2 Late 2024"]
[Site "https://www.chess.com"]
[Date "2024.01.02"]
[Round "3"]
[White "Ardito, Andrew"]
[Black "Gao, Raymond"]
[Result "0-1"]
[Board "224"]
[TimeControl "180+1"]
[WhiteFideId "2033976"]
[BlackFideId "2629429"]
[WhiteElo "2058"]
[BlackElo "2369"]
[WhiteTeam "USA"]
[BlackTeam "CAN"]
[WhiteClock "0:00:13"]
[BlackClock "0:01:35"]

1. Nf3 {[%clk 0:03:00]}  Nf6 {[%clk 0:02:59]} 2. g3 {[%clk 0:03:00]}  e6 {[%clk 0:02:59]} 3. Bg2 {[%clk 0:03:00]}  d5 {[%clk 0:03:00]} 4. d3 {[%clk 0:03:00]}  Be7 {[%clk 0:03:01]} 5. O-O {[%clk 0:03:00]}  O-O {[%clk 0:03:02]} 6. Nbd2 {[%clk 0:02:59]}  c5 {[%clk 0:03:02]} 7. e4 {[%clk 0:03:00]}  Nc6 {[%clk 0:03:03]} 8. e5 {[%clk 0:02:59]}  Nd7 {[%clk 0:03:02]} 9. Re1 {[%clk 0:03:00]}  b5 {[%clk 0:03:03]} 10. c3 {[%clk 0:02:56]}  Qc7 {[%clk 0:03:02]} 11. d4 {[%clk 0:02:56]}  b4 {[%clk 0:02:59]} 12. Nf1 {[%clk 0:02:41]}  a5 {[%clk 0:02:57]} 13. h4 {[%clk 0:02:27]}  Ba6 {[%clk 0:02:54]} 14. Bg5 {[%clk 0:02:23]}  h6 {[%clk 0:02:51]} 15. Bf4 {[%clk 0:02:14]}  bxc3 {[%clk 0:02:51]} 16. bxc3 {[%clk 0:02:14]}  cxd4 {[%clk 0:02:52]} 17. cxd4 {[%clk 0:02:11]}  Nb4 {[%clk 0:02:52]} 18. Rc1 {[%clk 0:02:09]}  Qb6 {[%clk 0:02:51]} 19. Re3 {[%clk 0:01:51]}  Rac8 {[%clk 0:02:49]} 20. Rb1 {[%clk 0:01:47]}  Qa7 {[%clk 0:02:38]} 21. a3 {[%clk 0:01:44]}  Nc2 {[%clk 0:02:28]} 22. Reb3 {[%clk 0:01:27]}  a4 {[%clk 0:02:26]} 23. R3b2 {[%clk 0:01:14]}  Nxa3 {[%clk 0:02:25]} 24. Ra1 {[%clk 0:01:15]}  Nc4 {[%clk 0:02:13]} 25. Rba2 {[%clk 0:01:13]}  a3 {[%clk 0:02:13]} 26. Ne3 {[%clk 0:01:13]}  Nxe3 {[%clk 0:02:11]} 27. Bxe3 {[%clk 0:01:12]}  Bc4 {[%clk 0:02:12]} 28. Rd2 {[%clk 0:01:09]}  Rb8 {[%clk 0:02:03]} 29. g4 {[%clk 0:01:09]}  Rb7 {[%clk 0:01:58]} 30. g5 {[%clk 0:01:08]}  Rfb8 {[%clk 0:01:53]} 31. gxh6 {[%clk 0:01:07]}  g6 {[%clk 0:01:53]} 32. h5 {[%clk 0:01:05]}  a2 {[%clk 0:01:51]} 33. hxg6 {[%clk 0:00:34]}  Rb1 {[%clk 0:01:50]} 34. h7+ {[%clk 0:00:34]}  Kh8 {[%clk 0:01:38]} 35. Ng5 {[%clk 0:00:13]}  fxg6 {[%clk 0:01:35]} 0-1

[Event "January 2 Late 2024"]
[Site "https://www.chess.com"]
[Date "2024.01.02"]
[Round "3"]
[White "Marcziter, Dmitrii"]
[Black "Vujcic, Milena"]
[Result "1-0"]
[Board "225"]
[TimeControl "180+1"]
[WhiteFideId "13900765"]
[BlackFideId "954748"]
[WhiteElo "2365"]
[BlackElo "2031"]
[WhiteTeam "GER"]
[BlackTeam "SRB"]
[WhiteClock "0:00:16"]
[BlackClock "0:00:54"]

1. d4 {[%clk 0:02:37]}  Nf6 {[%clk 0:02:45]} 2. c4 {[%clk 0:02:37]}  g6 {[%clk 0:02:45]} 3. Nf3 {[%clk 0:02:36]}  Bg7 {[%clk 0:02:44]} 4. g3 {[%clk 0:02:36]}  O-O {[%clk 0:02:43]} 5. Bg2 {[%clk 0:02:36]}  d6 {[%clk 0:02:43]} 6. Nc3 {[%clk 0:02:36]}  Nc6 {[%clk 0:02:43]} 7. O-O {[%clk 0:02:36]}  a6 {[%clk 0:02:44]} 8. h3 {[%clk 0:02:36]}  e5 {[%clk 0:02:36]} 9. dxe5 {[%clk 0:02:14]}  dxe5 {[%clk 0:02:35]} 10. Qxd8 {[%clk 0:02:13]}  Rxd8 {[%clk 0:02:36]} 11. Bg5 {[%clk 0:02:13]}  Be6 {[%clk 0:02:31]} 12. Nd2 {[%clk 0:02:08]}  h6 {[%clk 0:02:24]} 13. Bxf6 {[%clk 0:02:07]}  Rxd2 {[%clk 0:02:19]} 14. Bxg7 {[%clk 0:02:06]}  Kxg7 {[%clk 0:02:20]} 15. b3 {[%clk 0:01:53]}  Nd4 {[%clk 0:02:11]} 16. e3 {[%clk 0:01:47]}  Nc2 {[%clk 0:02:06]} 17. Rad1 {[%clk 0:01:44]}  Rxd1 {[%clk 0:02:03]} 18. Rxd1 {[%clk 0:01:43]}  c6 {[%clk 0:02:03]} 19. Na4 {[%clk 0:01:39]}  a5 {[%clk 0:01:49]} 20. Nc5 {[%clk 0:01:32]}  Bc8 {[%clk 0:01:39]} 21. Rd8 {[%clk 0:01:20]}  Kf6 {[%clk 0:01:37]} 22. Rh8 {[%clk 0:01:04]}  h5 {[%clk 0:01:34]} 23. Nd7+ {[%clk 0:00:57]}  Ke6 {[%clk 0:01:31]} 24. Nb6 {[%clk 0:00:56]}  Rb8 {[%clk 0:01:24]} 25. Rxc8 {[%clk 0:00:52]}  Rxc8 {[%clk 0:01:20]} 26. Nxc8 {[%clk 0:00:52]}  Kd7 {[%clk 0:01:17]} 27. Nb6+ {[%clk 0:00:51]}  Kc7 {[%clk 0:01:17]} 28. c5 {[%clk 0:00:51]}  Nb4 {[%clk 0:01:14]} 29. Nc4 {[%clk 0:00:47]}  Nxa2 {[%clk 0:01:12]} 30. Nxa5 {[%clk 0:00:45]}  Nb4 {[%clk 0:01:12]} 31. Bf1 {[%clk 0:00:39]}  Na2 {[%clk 0:01:09]} 32. Nc4 {[%clk 0:00:32]}  Nc3 {[%clk 0:01:08]} 33. Nxe5 {[%clk 0:00:30]}  Ne4 {[%clk 0:01:06]} 34. b4 {[%clk 0:00:28]}  Nf6 {[%clk 0:01:00]} 35. Nxf7 {[%clk 0:00:26]}  Nd5 {[%clk 0:01:00]} 36. Ne5 {[%clk 0:00:22]}  Nxb4 {[%clk 0:01:00]} 37. Nxg6 {[%clk 0:00:22]}  Na6 {[%clk 0:00:56]} 38. Bxa6 {[%clk 0:00:21]}  bxa6 {[%clk 0:00:57]} 39. Ne5 {[%clk 0:00:20]}  a5 {[%clk 0:00:56]} 40. Nc4 {[%clk 0:00:20]}  a4 {[%clk 0:00:56]} 41. g4 {[%clk 0:00:20]}  Kd7 {[%clk 0:00:57]} 42. f4 {[%clk 0:00:16]}  hxg4 {[%clk 0:00:56]} 43. hxg4 {[%clk 0:00:16]}  Ke6 {[%clk 0:00:57]} 44. e4 {[%clk 0:00:16]}  Kf6 {[%clk 0:00:54]} 45. Kf2 {[%clk 0:00:16]} 1-0

[Event "January 2 Late 2024"]
[Site "https://www.chess.com"]
[Date "2024.01.02"]
[Round "3"]
[White "tolia123"]
[Black "Sokolov, Andrei"]
[Result "1/2-1/2"]
[Board "226"]
[TimeControl "180+1"]
[BlackFideId "11600306"]
[WhiteElo "2030"]
[BlackElo "2365"]
[BlackTeam "LAT"]
[WhiteClock "0:00:14"]
[BlackClock "0:00:04"]

1. e4 {[%clk 0:03:00]}  e5 {[%clk 0:02:59]} 2. Nf3 {[%clk 0:03:00]}  Nc6 {[%clk 0:02:57]} 3. d4 {[%clk 0:03:00]}  exd4 {[%clk 0:02:55]} 4. Nxd4 {[%clk 0:03:01]}  Nf6 {[%clk 0:02:55]} 5. Nxc6 {[%clk 0:02:59]}  bxc6 {[%clk 0:02:54]} 6. e5 {[%clk 0:02:58]}  Qe7 {[%clk 0:02:54]} 7. Qe2 {[%clk 0:02:58]}  Nd5 {[%clk 0:02:52]} 8. g3 {[%clk 0:02:58]}  d6 {[%clk 0:02:45]} 9. Bg2 {[%clk 0:02:49]}  Qxe5 {[%clk 0:02:40]} 10. Qxe5+ {[%clk 0:02:46]}  dxe5 {[%clk 0:02:40]} 11. c4 {[%clk 0:02:44]}  Ne7 {[%clk 0:02:39]} 12. Nc3 {[%clk 0:02:39]}  Be6 {[%clk 0:02:29]} 13. b3 {[%clk 0:02:27]}  f6 {[%clk 0:02:28]} 14. Ba3 {[%clk 0:02:22]}  Kf7 {[%clk 0:02:10]} 15. O-O-O {[%clk 0:02:04]}  g6 {[%clk 0:01:55]} 16. Rhe1 {[%clk 0:01:38]}  Bh6+ {[%clk 0:01:53]} 17. Kb2 {[%clk 0:01:36]}  Rad8 {[%clk 0:01:50]} 18. Bxe7 {[%clk 0:01:34]}  Kxe7 {[%clk 0:01:49]} 19. Bxc6 {[%clk 0:01:34]}  Bd2 {[%clk 0:01:17]} 20. Rg1 {[%clk 0:01:19]}  Bg4 {[%clk 0:00:29]} 21. f3 {[%clk 0:01:07]}  Bxc3+ {[%clk 0:00:28]} 22. Kxc3 {[%clk 0:01:07]}  Be6 {[%clk 0:00:28]} 23. Rge1 {[%clk 0:00:52]}  Rd6 {[%clk 0:00:28]} 24. Rxd6 {[%clk 0:00:51]}  Kxd6 {[%clk 0:00:25]} 25. Be4 {[%clk 0:00:40]}  f5 {[%clk 0:00:20]} 26. Rd1+ {[%clk 0:00:40]}  Ke7 {[%clk 0:00:19]} 27. Bc6 {[%clk 0:00:37]}  h5 {[%clk 0:00:14]} 28. Bd5 {[%clk 0:00:32]}  h4 {[%clk 0:00:14]} 29. Re1 {[%clk 0:00:23]}  Bxd5 {[%clk 0:00:07]} 30. cxd5 {[%clk 0:00:23]}  Kd6 {[%clk 0:00:05]} 31. Kc4 {[%clk 0:00:19]}  hxg3 {[%clk 0:00:04]} 32. hxg3 {[%clk 0:00:20]}  Rh3 {[%clk 0:00:04]} 33. Rg1 {[%clk 0:00:20]}  Rh2 {[%clk 0:00:04]} 34. a4 {[%clk 0:00:19]}  Rc2+ {[%clk 0:00:04]} 35. Kd3 {[%clk 0:00:19]}  Rc5 {[%clk 0:00:04]} 36. g4 {[%clk 0:00:18]}  Rxd5+ {[%clk 0:00:05]} 37. Kc3 {[%clk 0:00:18]}  Rd4 {[%clk 0:00:05]} 38. gxf5 {[%clk 0:00:18]}  gxf5 {[%clk 0:00:06]} 39. Rg6+ {[%clk 0:00:18]}  Kd7 {[%clk 0:00:06]} 40. Rg7+ {[%clk 0:00:18]}  Kc6 {[%clk 0:00:06]} 41. Rg6+ {[%clk 0:00:17]}  Kb7 {[%clk 0:00:07]} 42. Re6 {[%clk 0:00:18]}  Rd5 {[%clk 0:00:07]} 43. Kc4 {[%clk 0:00:18]}  Rd4+ {[%clk 0:00:07]} 44. Kc3 {[%clk 0:00:18]}  Rf4 {[%clk 0:00:07]} 45. Rxe5 {[%clk 0:00:18]}  Rxf3+ {[%clk 0:00:08]} 46. Kc4 {[%clk 0:00:18]}  f4 {[%clk 0:00:08]} 47. Rf5 {[%clk 0:00:19]}  Rf1 {[%clk 0:00:08]} 48. Kc3 {[%clk 0:00:19]}  f3 {[%clk 0:00:09]} 49. Kd2 {[%clk 0:00:17]}  f2 {[%clk 0:00:08]} 50. Ke2 {[%clk 0:00:17]}  Rb1 {[%clk 0:00:09]} 51. Kxf2 {[%clk 0:00:16]}  Rxb3 {[%clk 0:00:08]} 52. Ke2 {[%clk 0:00:15]}  Rb4 {[%clk 0:00:09]} 53. a5 {[%clk 0:00:14]}  Ka6 {[%clk 0:00:09]} 54. Rc5 {[%clk 0:00:13]}  Rb2+ {[%clk 0:00:07]} 55. Kd3 {[%clk 0:00:13]}  Rb5 {[%clk 0:00:05]} 56. Rxc7 {[%clk 0:00:13]}  Rxa5 {[%clk 0:00:05]} 57. Kc4 {[%clk 0:00:13]}  Ra4+ {[%clk 0:00:05]} 58. Kb3 {[%clk 0:00:13]}  Rh4 {[%clk 0:00:05]} 59. Rc6+ {[%clk 0:00:13]}  Kb5 {[%clk 0:00:06]} 60. Rg6 {[%clk 0:00:12]}  a5 {[%clk 0:00:06]} 61. Rg5+ {[%clk 0:00:12]}  Kb6 {[%clk 0:00:05]} 62. Rf5 {[%clk 0:00:13]}  Rh3+ {[%clk 0:00:05]} 63. Ka4 {[%clk 0:00:13]}  Rh4+ {[%clk 0:00:05]} 64. Kb3 {[%clk 0:00:14]}  Rb4+ {[%clk 0:00:06]} 65. Ka3 {[%clk 0:00:14]}  Rc4 {[%clk 0:00:05]} 66. Kb3 {[%clk 0:00:13]}  Rb4+ {[%clk 0:00:03]} 67. Ka3 {[%clk 0:00:14]}  Rh4 {[%clk 0:00:04]} 68. Kb3 {[%clk 0:00:14]} 1/2-1/2

[Event "January 2 Late 2024"]
[Site "https://www.chess.com"]
[Date "2024.01.02"]
[Round "3"]
[White "Bongo Akanga Ndjila, Barthelemy"]
[Black "Obon Temprano, Sergi"]
[Result "0-1"]
[Board "227"]
[TimeControl "180+1"]
[WhiteFideId "10609431"]
[BlackFideId "2226545"]
[WhiteElo "2026"]
[BlackElo "2360"]
[WhiteTeam "GAB"]
[BlackTeam "ESP"]
[WhiteClock "0:00:00"]
[BlackClock "0:00:27"]

1. d4 {[%clk 0:02:56]}  d5 {[%clk 0:02:59]} 2. c4 {[%clk 0:02:54]}  c6 {[%clk 0:02:59]} 3. Qc2 {[%clk 0:02:53]}  Nf6 {[%clk 0:02:59]} 4. Nf3 {[%clk 0:02:53]}  g6 {[%clk 0:02:59]} 5. g3 {[%clk 0:02:52]}  Bf5 {[%clk 0:02:58]} 6. Qb3 {[%clk 0:02:52]}  Qb6 {[%clk 0:02:57]} 7. Bg2 {[%clk 0:02:51]}  Bg7 {[%clk 0:02:57]} 8. O-O {[%clk 0:02:50]}  Nbd7 {[%clk 0:02:56]} 9. Nbd2 {[%clk 0:02:50]}  O-O {[%clk 0:02:52]} 10. Qa3 {[%clk 0:02:48]}  Rfe8 {[%clk 0:02:47]} 11. b4 {[%clk 0:02:32]}  Ne4 {[%clk 0:02:42]} 12. c5 {[%clk 0:02:32]}  Qc7 {[%clk 0:02:16]} 13. Qb3 {[%clk 0:02:20]}  e5 {[%clk 0:02:05]} 14. e3 {[%clk 0:02:18]}  exd4 {[%clk 0:01:58]} 15. exd4 {[%clk 0:02:07]}  a5 {[%clk 0:01:48]} 16. bxa5 {[%clk 0:01:06]}  Ndxc5 {[%clk 0:01:38]} 17. Qd1 {[%clk 0:00:43]}  Qxa5 {[%clk 0:01:21]} 18. Nxe4 {[%clk 0:00:13]}  Nxe4 {[%clk 0:01:16]} 19. Be3 {[%clk 0:00:09]}  Qa4 {[%clk 0:01:06]} 20. Qc1 {[%clk 0:00:06]}  Qa3 {[%clk 0:01:01]} 21. Qd1 {[%clk 0:00:05]}  Nc3 {[%clk 0:00:57]} 22. Qd2 {[%clk 0:00:05]}  Nb5 {[%clk 0:00:52]} 23. Bh6 {[%clk 0:00:02]}  Qa5 {[%clk 0:00:42]} 24. Qf4 {[%clk 0:00:01]}  Re4 {[%clk 0:00:39]} 25. Qg5 {[%clk 0:00:00]}  Nxd4 {[%clk 0:00:27]} 0-1